fUSD/lending_fUSD_20240218
["ID","MTS","AMOUNT","RATE_DAILY","PERIOD"]
[314372442,1708242641027,-793.6727,0.00036598,2]
[314372443,1708242641036,-150.0,0.00036632,2]
[314372444,1708242641046,-150.0,0.00036657,2]
[314372445,1708242641055,-150.0,0.00036672,2]
[314372446,1708242641064,-9803.22586309,0.00036687,2]
[314372447,1708242641074,-879.73341904,0.00036688,10]
[314372448,1708242641084,-500.0,0.00036696,2]
[314372449,1708242641093,-1122.0,0.00036696,2]
[314372450,1708242641102,-500.0,0.00036696,2]
[314372451,1708242641112,-500.0,0.00036696,2]
[314372452,1708242641122,-500.0,0.00036696,2]
[314372454,1708242641131,-500.0,0.00036696,2]
[314372456,1708242641141,-500.0,0.00036696,2]
[314372458,1708242641151,-1671.74,0.00036696,2]
[314372460,1708242641161,-515.04,0.00036696,2]
[314372462,1708242641171,-500.0,0.00036696,2]
[314372464,1708242641180,-500.0,0.00036696,2]
[314372466,1708242641189,-5795.5,0.00036696,2]
[314372468,1708242641198,-1314.02,0.00036696,2]
[314372470,1708242641207,-500.0,0.00036696,2]
[314372472,1708242641216,-1481.68,0.00036696,2]
[314372474,1708242641225,-500.0,0.00036696,2]
[314372477,1708242641234,-607.49,0.00036696,2]
[314372480,1708242641243,-500.0,0.00036696,2]
[314372483,1708242641252,-500.0,0.00036696,2]
[314372486,1708242641262,-500.0,0.00036696,2]
[314372488,1708242641271,-500.0,0.00036696,2]
[314372491,1708242641280,-500.0,0.00036696,2]
[314372494,1708242641290,-500.0,0.00036696,2]
[314372496,1708242641299,-265.86012814,0.00036696,2]
[314372498,1708242641308,-494.59571985,0.00036696,2]
[314372500,1708242641317,-500.0,0.00036696,2]
[314372502,1708242641326,-500.0,0.00036696,2]
[314372504,1708242641335,-500.0,0.00036696,2]
[314372506,1708242641344,-892.27,0.00036696,2]
[314372508,1708242641353,-500.0,0.00036696,2]
[314372510,1708242641362,-500.0,0.00036697,2]
[314372512,1708242641373,-500.0,0.00036697,7]
[314372514,1708242641382,-500.0,0.00036697,2]
[314372516,1708242641391,-500.0,0.00036697,2]
[314372518,1708242641400,-500.0,0.00036697,2]
[314372520,1708242641410,-500.0,0.00036697,2]
[314372522,1708242641419,-500.0,0.00036697,2]
[314372524,1708242641428,-500.0,0.00036697,2]
[314372526,1708242641437,-500.0,0.00036697,2]
[314372528,1708242641446,-500.0,0.00036697,2]
[314372530,1708242641456,-500.0,0.00036697,2]
[314372532,1708242641464,-500.0,0.00036697,2]
[314372534,1708242641474,-296.0,0.00036697,2]
[314372536,1708242641483,-500.0,0.00036697,2]
[314372538,1708242641491,-500.0,0.00036697,2]
[314372540,1708242641501,-266.7936639,0.00036697,2]
[314372542,1708242641510,-279.40456945,0.00036697,2]
[314372544,1708242641519,-500.0,0.00036697,2]
[314372546,1708242641528,-500.0,0.00036697,2]
[314372548,1708242641537,-500.0,0.00036697,2]
[314372550,1708242641546,-500.0,0.00036697,2]
[314372552,1708242641555,-500.0,0.00036697,2]
[314372554,1708242641563,-500.0,0.00036697,2]
[314372556,1708242641573,-520.12394965,0.00036697,2]
[314372558,1708242641583,-909.34,0.00036697,2]
[314372560,1708242641592,-500.0,0.00036697,2]
[314372562,1708242641601,-164.65811342,0.00036697,2]
[314372564,1708242641610,-260.5614611,0.00036697,2]
[314372566,1708242641619,-500.0,0.00036697,2]
[314372568,1708242641628,-500.0,0.00036697,2]
[314372570,1708242641636,-513.69,0.00036697,2]
[314372572,1708242641646,-500.0,0.00036697,2]
[314372574,1708242641655,-500.0,0.00036697,2]
[314372576,1708242641664,-500.0,0.00036697,2]
[314372578,1708242641674,-500.0,0.00036697,2]
[314372580,1708242641683,-1281.85,0.00036697,2]
[314372582,1708242641693,-418.98535589,0.00036697,2]
[314372584,1708242641701,-500.0,0.00036697,2]
[314372585,1708242641710,-500.0,0.00036697,2]
[314372588,1708242641719,-500.0,0.00036697,2]
[314372589,1708242641728,-500.0,0.00036697,2]
[314372591,1708242641737,-500.0,0.00036697,2]
[314372593,1708242641746,-500.0,0.00036697,2]
[314372596,1708242641756,-1648.04,0.00036697,2]
[314372598,1708242641765,-500.0,0.00036697,2]
[314372600,1708242641774,-500.0,0.00036697,2]
[314372602,1708242641783,-500.0,0.00036697,2]
[314372604,1708242641792,-1099.75343582,0.00036697,2]
[314372605,1708242641801,-500.0,0.00036697,2]
[314372607,1708242641811,-500.0,0.00036697,2]
[314372609,1708242641820,-425.42132765,0.00036697,2]
[314372612,1708242641829,-500.0,0.00036697,2]
[314372613,1708242641838,-500.0,0.00036697,2]
[314372615,1708242641848,-500.0,0.00036697,2]
[314372617,1708242641858,-278.22933407,0.00036697,2]
[314372619,1708242641868,-500.0,0.00036697,2]
[314372621,1708242641877,-1052.6,0.00036697,2]
[314372623,1708242641887,-360.34386567,0.00036697,2]
[314372627,1708242641897,-500.0,0.00036697,2]
[314372629,1708242641906,-500.0,0.00036697,2]
[314372631,1708242641915,-500.0,0.00036697,2]
[314372632,1708242641924,-500.0,0.00036697,2]
[314372633,1708242641935,-500.0,0.00036697,2]
[314372634,1708242641943,-395.16261845,0.00036697,2]
[314372635,1708242641952,-1295.53,0.00036697,2]
[314372636,1708242641961,-500.0,0.00036697,2]
[314372637,1708242641970,-685.35,0.00036697,2]
[314372638,1708242641979,-500.0,0.00036697,2]
[314372639,1708242641988,-500.0,0.00036697,2]
[314372641,1708242641997,-406.26288183,0.00036697,2]
[314372642,1708242642006,-500.0,0.00036697,2]
[314372643,1708242642015,-500.0,0.00036697,2]
[314372644,1708242642025,-500.0,0.00036697,2]
[314372646,1708242642034,-500.0,0.00036697,2]
[314372648,1708242642043,-500.0,0.00036697,2]
[314372651,1708242642053,-2217.43,0.00036697,2]
[314372653,1708242642063,-500.0,0.00036697,2]
[314372655,1708242642072,-500.0,0.00036697,2]
[314372656,1708242642081,-500.0,0.00036697,2]
[314372659,1708242642090,-259.9371892,0.00036697,2]
[314372660,1708242642100,-500.0,0.00036697,2]
[314372663,1708242642110,-461.87898071,0.00036697,2]
[314372665,1708242642120,-500.0,0.00036697,2]
[314372667,1708242642129,-500.0,0.00036697,2]
[314372669,1708242642138,-571.62785921,0.00036697,2]
[314372671,1708242642146,-500.0,0.00036697,2]
[314372673,1708242642156,-500.0,0.00036697,2]
[314372675,1708242642166,-500.0,0.00036697,2]
[314372677,1708242642175,-1000.0,0.00036697,7]
[314372679,1708242642184,-625.53219737,0.00036697,2]
[314372688,1708242642265,-150.0,0.00035306,2]
[314372690,1708242642274,-18.17571081,0.00036697,2]
[314372691,1708242642283,-500.0,0.00036697,2]
[314372693,1708242642293,-500.0,0.00036697,2]
[314372695,1708242642302,-500.0,0.00036697,2]
[314372697,1708242642311,-500.0,0.00036697,2]
[314372699,1708242642320,-500.0,0.00036697,2]
[314372701,1708242642329,-500.0,0.00036697,2]
[314372703,1708242642338,-500.0,0.00036697,2]
[314372705,1708242642347,-500.0,0.00036697,2]
[314372706,1708242642356,-1474.4,0.00036697,2]
[314372708,1708242642366,-500.0,0.00036697,2]
[314372710,1708242642375,-500.0,0.00036697,2]
[314372712,1708242642384,-1168.45,0.00036697,2]
[314372714,1708242642393,-500.0,0.00036697,2]
[314372716,1708242642402,-500.0,0.00036697,2]
[314372718,1708242642412,-500.0,0.00036697,2]
[314372720,1708242642421,-500.0,0.00036697,2]
[314372722,1708242642430,-500.0,0.00036697,2]
[314372724,1708242642439,-500.0,0.00036697,2]
[314372726,1708242642449,-915.99,0.00036697,2]
[314372728,1708242642458,-403.43385747,0.00036697,2]
[314372729,1708242642467,-500.0,0.00036697,2]
[314372731,1708242642476,-1000.0,0.00036697,7]
[314372733,1708242642485,-517.39,0.00036697,2]
[314372736,1708242642495,-500.0,0.00036697,2]
[314372737,1708242642504,-500.0,0.00036697,2]
[314372739,1708242642512,-500.0,0.00036697,2]
[314372741,1708242642522,-500.0,0.00036697,2]
[314372743,1708242642531,-448.48708112,0.00036697,2]
[314372745,1708242642541,-500.0,0.00036697,2]
[314372747,1708242642551,-21171.253,0.00036698,2]
[314372749,1708242642561,-39498.4927,0.00036698,2]
[314372751,1708242642570,-500.0,0.00036698,2]
[314372753,1708242642579,-100000.0,0.00036698,2]
[314372755,1708242642589,-2000.0,0.000367,2]
[314372757,1708242642599,-157.99685456,0.000367,2]
[314372759,1708242642608,-150.0,0.00036717,2]
[314372761,1708242642619,-160.2,0.0003672,2]
[314372764,1708242642629,-150.0,0.00036741,2]
[314372765,1708242642638,-306.03,0.0003675,2]
[314372767,1708242642648,-150.0,0.00036767,2]
[314372769,1708242642657,-150.0,0.00036775,2]
[314372771,1708242642668,-219.93335476,0.00036782,10]
[314372773,1708242642678,-439.86670952,0.00036787,10]
[314372775,1708242642687,-180.93252908,0.00036788,2]
[314372778,1708242642697,-10000.0,0.00036792,3]
[314372780,1708242642706,-1122.0,0.00036796,2]
[314372781,1708242642716,-500.0,0.00036796,2]
[314372783,1708242642726,-500.0,0.00036796,2]
[314372785,1708242642735,-500.0,0.00036796,2]
[314372787,1708242642744,-500.0,0.00036796,2]
[314372789,1708242642754,-500.0,0.00036796,2]
[314372791,1708242642764,-1671.74,0.00036796,2]
[314372793,1708242642773,-515.04,0.00036796,2]
[314372795,1708242642782,-500.0,0.00036796,2]
[314372797,1708242642791,-5795.5,0.00036796,2]
[314372799,1708242642800,-1314.02,0.00036796,2]
[314372801,1708242642809,-1481.68,0.00036796,2]
[314372803,1708242642818,-607.49,0.00036796,2]
[314372805,1708242642828,-500.0,0.00036796,2]
[314372807,1708242642837,-500.0,0.00036796,2]
[314372809,1708242642847,-500.0,0.00036796,2]
[314372811,1708242642857,-892.27,0.00036796,2]
[314372813,1708242642870,-500.0,0.00036796,2]
[314372815,1708242642880,-5000.0,0.00036797,3]
[314372817,1708242642890,-500.0,0.00036797,2]
[314372819,1708242642900,-500.0,0.00036797,2]
[314372821,1708242642909,-180.55846297,0.00036797,2]
[314372823,1708242642918,-500.0,0.00036797,2]
[314372825,1708242642928,-500.0,0.00036797,2]
[314372827,1708242642938,-500.0,0.00036797,2]
[314372829,1708242642948,-500.0,0.00036797,2]
[314372831,1708242642958,-501.67,0.00036797,2]
[314372833,1708242642968,-500.0,0.00036797,2]
[314372835,1708242642977,-500.0,0.00036797,2]
[314372837,1708242642986,-1000.0,0.00036797,7]
[314372839,1708242642995,-223.52622778,0.00036797,2]
[314372841,1708242643005,-500.0,0.00036797,2]
[314372843,1708242643014,-500.0,0.00036797,2]
[314372845,1708242643024,-500.0,0.00036797,2]
[314372847,1708242643034,-519.69125729,0.00036797,2]
[314372849,1708242643043,-500.0,0.00036797,2]
[314372852,1708242643052,-500.0,0.00036797,2]
[314372855,1708242643061,-500.0,0.00036797,7]
[314372857,1708242643070,-500.0,0.00036797,2]
[314372859,1708242643080,-500.0,0.00036797,2]
[314372861,1708242643089,-500.0,0.00036797,2]
[314372863,1708242643098,-500.0,0.00036797,2]
[314372865,1708242643108,-500.0,0.00036797,2]
[314372867,1708242643118,-500.0,0.00036797,2]
[314372869,1708242643127,-500.0,0.00036797,2]
[314372871,1708242643136,-386.54448345,0.00036797,2]
[314372873,1708242643146,-395.0029318,0.00036797,2]
[314372875,1708242643155,-500.0,0.00036797,2]
[314372877,1708242643165,-500.0,0.00036797,2]
[314372879,1708242643174,-500.0,0.00036797,2]
[314372880,1708242643183,-500.0,0.00036797,2]
[314372882,1708242643192,-651.43,0.00036797,2]
[314372884,1708242643202,-853.55,0.00036797,2]
[314372886,1708242643211,-388.09685338,0.00036797,2]
[314372889,1708242643221,-500.0,0.00036797,2]
[314372890,1708242643230,-500.0,0.00036797,2]
[314372892,1708242643239,-500.0,0.00036797,2]
[314372894,1708242643248,-436.46448139,0.00036797,2]
[314372896,1708242643257,-169.16176647,0.00036797,2]
[314372898,1708242643267,-581.66,0.00036797,2]
[314372900,1708242643276,-500.0,0.00036797,2]
[314372902,1708242643286,-500.0,0.00036797,2]
[314372904,1708242643295,-500.0,0.00036797,2]
[314372906,1708242643304,-500.0,0.00036797,2]
[314372908,1708242643313,-500.0,0.00036797,2]
[314372910,1708242643322,-909.34,0.00036797,2]
[314372912,1708242643332,-500.0,0.00036797,2]
[314372914,1708242643341,-500.0,0.00036797,2]
[314372916,1708242643350,-500.0,0.00036797,2]
[314372919,1708242643360,-500.0,0.00036797,2]
[314372921,1708242643372,-500.0,0.00036797,2]
[314372922,1708242643381,-513.69,0.00036797,2]
[314372924,1708242643389,-241.2,0.00036797,2]
[314372926,1708242643398,-500.0,0.00036797,2]
[314372928,1708242643407,-372.78628082,0.00036797,2]
[314372930,1708242643416,-500.0,0.00036797,2]
[314372932,1708242643425,-500.0,0.00036797,2]
[314372934,1708242643434,-1281.85,0.00036797,2]
[314372936,1708242643443,-500.0,0.00036797,2]
[314372938,1708242643452,-500.0,0.00036797,2]
[314372940,1708242643462,-500.0,0.00036797,2]
[314372942,1708242643471,-500.0,0.00036797,2]
[314372944,1708242643480,-500.0,0.00036797,2]
[314372946,1708242643489,-500.0,0.00036797,2]
[314372948,1708242643498,-500.0,0.00036797,2]
[314372950,1708242643507,-1648.04,0.00036797,2]
[314372952,1708242643516,-500.0,0.00036797,2]
[314372954,1708242643525,-500.0,0.00036797,2]
[314372956,1708242643535,-500.0,0.00036797,2]
[314372958,1708242643544,-1252.84,0.00036797,2]
[314372960,1708242643553,-500.0,0.00036797,2]
[314372962,1708242643562,-500.0,0.00036797,2]
[314372964,1708242643571,-414.40545887,0.00036797,2]
[314372966,1708242643581,-500.0,0.00036797,2]
[314372968,1708242643590,-464.62122237,0.00036797,2]
[314372970,1708242643600,-500.0,0.00036797,2]
[314372972,1708242643609,-1052.6,0.00036797,2]
[314372974,1708242643621,-500.0,0.00036797,2]
[314372976,1708242643630,-500.0,0.00036797,2]
[314372978,1708242643639,-500.0,0.00036797,2]
[314372980,1708242643648,-500.0,0.00036797,2]
[314372982,1708242643658,-1122.0,0.00036797,2]
[314372984,1708242643666,-500.0,0.00036797,2]
[314372986,1708242643675,-1295.53,0.00036797,2]
[314372988,1708242643685,-618.85147809,0.00036797,2]
[314372990,1708242643695,-685.35,0.00036797,2]
[314372992,1708242643704,-500.0,0.00036797,2]
[314372994,1708242643712,-417.96767116,0.00036797,2]
[314372996,1708242643721,-500.0,0.00036797,2]
[314372998,1708242643730,-500.0,0.00036797,2]
[314373000,1708242643739,-435.05543412,0.00036797,2]
[314373002,1708242643749,-163.03530531,0.00036797,2]
[314373003,1708242643758,-500.0,0.00036797,2]
[314373005,1708242643767,-2217.43,0.00036797,2]
[314373007,1708242643777,-183.27775526,0.00036797,2]
[314373009,1708242643786,-500.0,0.00036797,2]
[314373011,1708242643795,-1671.74,0.00036797,2]
[314373014,1708242643805,-500.0,0.00036797,2]
[314373015,1708242643814,-500.0,0.00036797,2]
[314373017,1708242643823,-515.04,0.00036797,2]
[314373019,1708242643832,-500.0,0.00036797,2]
[314373022,1708242643842,-500.0,0.00036797,2]
[314373023,1708242643852,-500.0,0.00036797,2]
[314373026,1708242643863,-500.0,0.00036797,2]
[314373028,1708242643874,-500.0,0.00036797,2]
[314373030,1708242643884,-500.0,0.00036797,2]
[314373031,1708242643893,-500.0,0.00036797,2]
[314373033,1708242643903,-500.0,0.00036797,2]
[314373035,1708242643912,-5795.5,0.00036797,2]
[314373037,1708242643921,-500.0,0.00036797,2]
[314373039,1708242643930,-1314.02,0.00036797,2]
[314373041,1708242643939,-500.0,0.00036797,2]
[314373043,1708242643949,-1481.68,0.00036797,2]
[314373045,1708242643958,-1474.4,0.00036797,2]
[314373047,1708242643967,-500.0,0.00036797,2]
[314373049,1708242643976,-500.0,0.00036797,2]
[314373051,1708242643985,-1168.45,0.00036797,2]
[314373053,1708242643994,-500.0,0.00036797,2]
[314373055,1708242644003,-317.72862988,0.00036797,2]
[314373057,1708242644012,-500.0,0.00036797,2]
[314373058,1708242644021,-500.0,0.00036797,2]
[314373059,1708242644030,-915.99,0.00036797,2]
[314373060,1708242644039,-607.49,0.00036797,2]
[314373061,1708242644048,-500.0,0.00036797,2]
[314373062,1708242644057,-500.0,0.00036797,2]
[314373063,1708242644066,-517.39,0.00036797,2]
[314373064,1708242644075,-500.0,0.00036797,2]
[314373065,1708242644084,-500.0,0.00036797,2]
[314373066,1708242644093,-500.0,0.00036797,2]
[314373067,1708242644102,-500.0,0.00036797,2]
[314373068,1708242644111,-500.0,0.00036797,2]
[314373069,1708242644121,-892.27,0.00036797,2]
[314373071,1708242644130,-500.0,0.00036797,2]
[314373072,1708242644139,-500.0,0.00036797,2]
[314373074,1708242644148,-500.0,0.00036798,7]
[314373076,1708242644158,-500.0,0.00036798,2]
[314373078,1708242644168,-500.0,0.00036798,2]
[314373080,1708242644177,-153.83817187,0.00036798,2]
[314373082,1708242644186,-543.84,0.00036798,2]
[314373084,1708242644195,-500.0,0.00036798,2]
[314373086,1708242644205,-500.0,0.00036798,2]
[314373088,1708242644214,-500.0,0.00036798,2]
[314373090,1708242644223,-500.0,0.00036798,2]
[314373092,1708242644232,-500.0,0.00036798,2]
[314373094,1708242644242,-909.34,0.00036798,2]
[314373096,1708242644251,-318.13155621,0.00036798,2]
[314373098,1708242644260,-500.0,0.00036798,2]
[314373100,1708242644270,-513.69,0.00036798,2]
[314373102,1708242644279,-500.0,0.00036798,2]
[314373104,1708242644289,-500.0,0.00036798,2]
[314373106,1708242644298,-1281.85,0.00036798,2]
[314373108,1708242644308,-500.0,0.00036798,2]
[314373110,1708242644316,-500.0,0.00036798,2]
[314373112,1708242644326,-500.0,0.00036798,2]
[314373114,1708242644335,-500.0,0.00036798,2]
[314373116,1708242644344,-500.0,0.00036798,2]
[314373119,1708242644355,-500.0,0.00036798,2]
[314373121,1708242644365,-1648.04,0.00036798,2]
[314373123,1708242644376,-500.0,0.00036798,2]
[314373124,1708242644386,-500.0,0.00036798,2]
[314373127,1708242644395,-500.0,0.00036798,2]
[314373128,1708242644405,-500.0,0.00036798,2]
[314373130,1708242644414,-500.0,0.00036798,2]
[314373131,1708242644423,-1052.6,0.00036798,2]
[314373133,1708242644433,-500.0,0.00036798,2]
[314373135,1708242644443,-452.68969265,0.00036798,2]
[314373137,1708242644452,-1295.53,0.00036798,2]
[314373139,1708242644461,-685.35,0.00036798,2]
[314373141,1708242644470,-500.0,0.00036798,2]
[314373143,1708242644479,-2217.43,0.00036798,2]
[314373145,1708242644489,-500.0,0.00036798,2]
[314373147,1708242644498,-565.4,0.00036798,2]
[314373148,1708242644511,-500.0,0.00036798,2]
[314373150,1708242644520,-500.0,0.00036798,2]
[314373152,1708242644529,-500.0,0.00036798,2]
[314373154,1708242644539,-500.0,0.00036798,2]
[314373156,1708242644548,-500.0,0.00036798,2]
[314373158,1708242644558,-500.0,0.00036798,2]
[314373160,1708242644567,-500.0,0.00036798,2]
[314373162,1708242644577,-372.06205588,0.00036798,2]
[314373181,1708242644745,-500.0,0.00036798,2]
[314373183,1708242644755,-372.06205579,0.00036798,2]
[314373184,1708242644765,-500.0,0.00036798,2]
[314373186,1708242644775,-500.0,0.00036798,2]
[314373188,1708242644784,-1474.4,0.00036798,2]
[314373190,1708242644793,-1168.45,0.00036798,2]
[314373192,1708242644802,-500.0,0.00036798,2]
[314373194,1708242644812,-500.0,0.00036798,2]
[314373196,1708242644822,-915.99,0.00036798,2]
[314373198,1708242644831,-500.0,0.00036798,2]
[314373200,1708242644841,-517.39,0.00036798,2]
[314373202,1708242644854,-500.0,0.00036798,2]
[314373204,1708242644863,-500.0,0.00036798,2]
[314373206,1708242644875,-1519.4981,0.00036798,2]
[314373208,1708242644884,-1000.0,0.00036798,2]
[314373210,1708242644894,-245000.0,0.00036798,2]
[314373212,1708242644904,-3019.19392819,0.00036799,9]
[314373214,1708242644913,-153.30681954,0.00036799,2]
[314373216,1708242644922,-500.0,0.00036799,2]
[314373218,1708242644933,-500.0,0.00036799,2]
[314373220,1708242644943,-581.66,0.00036799,2]
[314373222,1708242644953,-500.0,0.00036799,2]
[314373224,1708242644962,-500.0,0.00036799,2]
[314373226,1708242644972,-157.27623042,0.00036799,2]
[314373228,1708242644981,-1252.84,0.00036799,2]
[314373230,1708242644990,-500.0,0.00036799,2]
[314373232,1708242644999,-4703.158888,0.000368,2]
[314373234,1708242645009,-74384.166164,0.000368,2]
[314373236,1708242645018,-985.95248568,0.000368,2]
[314373238,1708242645027,-2268.406171,0.000368,2]
[314373240,1708242645037,-847.80037032,0.000368,2]
[314373242,1708242645046,-520.88470506,0.000368,2]
[314373244,1708242645055,-150.0,0.00036826,2]
[314373246,1708242645063,-150.0,0.00036854,2]
[314373248,1708242645073,-150.0,0.00036867,2]
[314373250,1708242645082,-157.99685453,0.00036882,2]
[314373252,1708242645091,-162.93449323,0.00036893,4]
[314373254,1708242645101,-2000.0,0.00036895,2]
[314373256,1708242645109,-200.0,0.00036895,2]
[314373258,1708242645120,-244.2523892,0.00036895,4]
[314373260,1708242645129,-3000.0,0.00036895,2]
[314373262,1708242645139,-1900723.9717084,0.00036895,2]
[314373267,1708242645266,-150.0,0.00034426,2]
[314373268,1708242645275,-150.0,0.00034445,2]
[314373269,1708242645285,-150.0,0.0003476,2]
[314373270,1708242645295,-150.0,0.00034857,2]
[314373271,1708242645304,-150.0,0.00034935,2]
[314373273,1708242645314,-150.0,0.00035123,2]
[314373275,1708242645324,-150.0,0.00035293,2]
[314373277,1708242645334,-150.0,0.0003562,2]
[314373279,1708242645344,-150.0,0.0003578,2]
[314373281,1708242645354,-150.0,0.00036361,2]
[314373283,1708242645365,-150.0,0.00036366,2]
[314373285,1708242645376,-150.0,0.00036704,2]
[314373287,1708242645386,-150.0,0.00036784,2]
[314373289,1708242645396,-131.93095103,0.00036895,2]
[314373292,1708242645612,-425.35399995,0.00036895,2]
[314373293,1708242645818,-150.0,0.00034297,2]
[314373294,1708242645827,-150.0,0.00034668,2]
[314373295,1708242645836,-150.0,0.00034775,2]
[314373296,1708242645846,-150.0,0.00034788,2]
[314373297,1708242645855,-150.0,0.00036468,2]
[314373298,1708242645865,-500.0,0.00036697,2]
[314373299,1708242645878,-1847.6971455,0.00036895,2]
[314373300,1708242645890,-984630.79712291,0.00036895,2]
[314373307,1708242646278,-150.0,0.000336,2]
[314373308,1708242646288,-150.0,0.00033963,2]
[314373309,1708242646297,-150.0,0.00034365,2]
[314373310,1708242646306,-150.0,0.00034997,2]
[314373311,1708242646315,-150.0,0.0003514,2]
[314373312,1708242646325,-150.0,0.00035388,2]
[314373313,1708242646334,-1429.22454202,0.00035798,4]
[314373314,1708242646349,-3568.76931675,0.00035798,4]
[314373315,1708242646363,-1549.35292645,0.00035798,4]
[314373316,1708242646374,-150.0,0.00035835,2]
[314373317,1708242646383,-150.0,0.00036212,2]
[314373318,1708242646393,-150.0,0.00036334,2]
[314373319,1708242646402,-150.0,0.00036441,2]
[314373320,1708242646411,-150.0,0.00036595,2]
[314373321,1708242646420,-500.0,0.00036697,2]
[314373322,1708242646430,-500.0,0.00036697,2]
[314373323,1708242646439,-500.0,0.00036797,2]
[314373324,1708242646449,-500.0,0.00036797,2]
[314373325,1708242646459,-500.0,0.00036798,2]
[314373326,1708242646468,-342.00805355,0.00036895,2]
[314373327,1708242646485,-2734.741,0.00036895,2]
[314373328,1708242646499,-1621.33212195,0.00036895,2]
[314373329,1708242646515,-500.0,0.00036697,2]
[314373330,1708242646524,-501.96218045,0.00036895,2]
[314373331,1708242646566,-150.0,0.00035023,2]
[314373332,1708242646575,-150.0,0.00035725,2]
[314373333,1708242646585,-200.0,0.00036696,2]
[314373335,1708242646610,-150.0,0.0003589,2]
[314373337,1708242646620,-300.0,0.00036696,2]
[314373338,1708242646630,-500.0,0.00036797,2]
[314373339,1708242646639,-258.75805706,0.00036895,2]
[314373340,1708242646651,-1024.70101936,0.00036895,2]
[314373341,1708242646662,-2583.85,0.00036895,2]
[314373342,1708242646675,-5607.19999998,0.00036895,2]
[314373343,1708242669937,1352.02790458,0.00023,2]
[314373344,1708242669961,1905.57,0.00023,2]
[314373345,1708242669984,1005263.27482775,0.00023,2]
[314373369,1708243053268,405.71378768,0.00025,30]
[314373371,1708243234540,155.0,0.00025,2]
[314373372,1708243260555,155.0,0.00025,2]
[314373373,1708243278538,210.92895025,0.00025,2]
[314373374,1708243380119,4873.09667871,0.00025,2]
[314373375,1708243398115,4873.09667871,0.00025,2]
[314373376,1708243416113,4873.09667871,0.00025,2]
[314373377,1708243434113,4873.09667871,0.00025,2]
[314373378,1708243450110,4873.09667871,0.00025,2]
[314373379,1708243472120,4873.09667871,0.00025,2]
[314373380,1708243500801,4873.09667871,0.00025,2]
[314373381,1708243512792,4873.09667871,0.00025,2]
[314373382,1708243530824,280.34538436,0.00025,2]
[314373383,1708243643887,7243.897093,0.00024932,2]
[314373394,1708243831382,-367.5506745,0.00025051,2]
[314373395,1708243831394,-680.50743066,0.00025051,2]
[314373396,1708243831403,-319.36682934,0.00025051,2]
[314373397,1708243831416,-301.52504693,0.00025051,2]
[314373398,1708243831428,-268.30807965,0.00025051,2]
[314373399,1708243831442,-178.6359925,0.00025051,2]
[314373400,1708243831451,-1116.0,0.00025052,2]
[314373401,1708243831461,-1196.38865317,0.00025052,2]
[314373402,1708243831498,-276.25983641,0.00025052,2]
[314373403,1708243831665,-9257.22571202,0.00025052,2]
[314373404,1708243831674,-150.0,0.00025058,2]